fUST/lending_fUST_20250725
["ID","MTS","AMOUNT","RATE_DAILY","PERIOD"]
[374619429,1753381843777,-1560.18,0.00020724,2]
[374619431,1753381843787,-460.0,0.00020724,2]
[374619433,1753381843796,-847.74,0.00020725,2]
[374619435,1753381843805,-896.72,0.00020725,2]
[374619437,1753381843816,-732.51,0.00020725,2]
[374619439,1753381843826,-460.0,0.00020725,2]
[374619442,1753381843838,-460.0,0.00020725,2]
[374619443,1753381843847,-460.0,0.00020725,2]
[374619446,1753381843857,-460.0,0.00020725,2]
[374619447,1753381843872,-460.0,0.00020725,2]
[374619449,1753381843881,-3010.21,0.00020725,2]
[374619451,1753381843891,-553.37,0.00020725,2]
[374619453,1753381843900,-735.37,0.00020725,2]
[374619455,1753381843912,-460.0,0.00020725,2]
[374619457,1753381843922,-1099.84,0.00020725,2]
[374619459,1753381843932,-460.0,0.00020725,2]
[374619461,1753381843944,-460.0,0.00020725,2]
[374619463,1753381843953,-211.52473052,0.00020726,2]
[374619465,1753381843962,-1050.8,0.00020726,2]
[374619467,1753381843971,-460.0,0.00020726,2]
[374619469,1753381843983,-460.0,0.00020726,2]
[374619471,1753381843996,-460.0,0.00020726,2]
[374619473,1753381844005,-460.0,0.00020726,2]
[374619475,1753381844015,-460.0,0.00020726,2]
[374619477,1753381844024,-460.0,0.00020726,2]
[374619479,1753381844033,-460.0,0.00020726,2]
[374619481,1753381844043,-1505.96,0.00020726,2]
[374619483,1753381844053,-801.22,0.00020726,2]
[374619485,1753381844063,-562.98,0.00020726,2]
[374619487,1753381844073,-1614.44,0.00020726,2]
[374619489,1753381844082,-654.15,0.00020726,2]
[374619491,1753381844092,-997.52,0.00020726,2]
[374619493,1753381844101,-460.0,0.00020726,2]
[374619495,1753381844111,-460.0,0.00020726,2]
[374619497,1753381844121,-460.0,0.00020727,2]
[374619499,1753381844130,-460.0,0.00020729,2]
[374619501,1753381844140,-679.3,0.0002073,2]
[374619503,1753381844149,-500.0,0.0002086,2]
[374619505,1753381844159,-649.91416204,0.0002086,2]
[374619507,1753381844169,-500.0,0.0002086,2]
[374619509,1753381844178,-500.0,0.0002086,2]
[374619511,1753381844188,-500.0,0.0002086,2]
[374619513,1753381844197,-500.0,0.0002086,2]
[374619515,1753381844207,-3789.64613716,0.00020866,4]
[374619517,1753381844216,-2271.6817829,0.0002087,2]
[374619519,1753381844226,-215.0738,0.0002097,2]
[374619521,1753381844237,-151.0,0.0002097,2]
[374619523,1753381844246,-151.0,0.0002097,2]
[374619525,1753381844256,-151.0,0.0002097,2]
[374619526,1753381844265,-151.0,0.0002097,2]
[374619528,1753381844275,-151.0,0.0002097,2]
[374619530,1753381844284,-151.0,0.0002097,2]
[374619532,1753381844293,-151.0,0.0002097,2]
[374619534,1753381844303,-151.0,0.0002097,2]
[374619536,1753381844312,-151.0,0.0002097,2]
[374619538,1753381844321,-151.0,0.0002097,2]
[374619540,1753381844330,-151.0,0.0002097,2]
[374619542,1753381844340,-151.0,0.0002097,2]
[374619544,1753381844349,-278.67023657,0.0002097,2]
[374619546,1753381844359,-151.0,0.0002097,2]
[374619548,1753381844368,-151.0,0.0002097,2]
[374619550,1753381844378,-151.0,0.0002097,2]
[374619552,1753381844387,-151.0,0.0002097,2]
[374619554,1753381844397,-151.0,0.0002097,2]
[374619556,1753381844406,-151.0,0.0002097,2]
[374619558,1753381844416,-151.0,0.0002097,2]
[374619560,1753381844425,-151.0,0.0002097,2]
[374619562,1753381844435,-151.0,0.0002097,2]
[374619565,1753381844444,-151.0,0.0002097,2]
[374619567,1753381844453,-151.0,0.0002097,2]
[374619568,1753381844462,-151.0,0.0002097,2]
[374619570,1753381844472,-151.0,0.0002097,2]
[374619572,1753381844481,-151.0,0.0002097,2]
[374619574,1753381844492,-151.0,0.0002097,2]
[374619576,1753381844502,-151.0,0.0002097,2]
[374619578,1753381844511,-151.0,0.0002097,2]
[374619580,1753381844521,-151.0,0.0002097,2]
[374619582,1753381844530,-151.0,0.0002097,2]
[374619584,1753381844539,-151.0,0.0002097,2]
[374619586,1753381844548,-151.0,0.0002097,2]
[374619588,1753381844557,-151.0,0.0002097,2]
[374619590,1753381844567,-151.0,0.0002097,2]
[374619592,1753381844576,-151.0,0.0002097,2]
[374619594,1753381844585,-151.0,0.0002097,2]
[374619596,1753381844595,-151.0,0.0002097,2]
[374619598,1753381844604,-151.0,0.0002097,2]
[374619600,1753381844613,-151.0,0.0002097,2]
[374619602,1753381844623,-151.0,0.0002097,2]
[374619604,1753381844632,-151.0,0.0002097,2]
[374619606,1753381844643,-25000.0,0.0002097,2]
[374619608,1753381844652,-2643.77,0.00020997,2]
[374619610,1753381844661,-796.07,0.00020997,2]
[374619612,1753381844670,-1006.4,0.00020998,2]
[374619614,1753381844680,-1560.18,0.00020998,2]
[374619616,1753381844690,-460.0,0.00020998,2]
[374619618,1753381844700,-847.74,0.00020999,2]
[374619620,1753381844710,-896.72,0.00020999,2]
[374619622,1753381844720,-732.51,0.00020999,2]
[374619624,1753381844730,-460.0,0.00020999,2]
[374619626,1753381844742,-460.0,0.00020999,2]
[374619628,1753381844751,-460.0,0.00020999,2]
[374619630,1753381844761,-460.0,0.00020999,2]
[374619632,1753381844770,-460.0,0.00020999,2]
[374619634,1753381844780,-3010.21,0.00020999,2]
[374619636,1753381844790,-553.37,0.00020999,2]
[374619638,1753381844800,-735.37,0.00020999,2]
[374619640,1753381844809,-460.0,0.00020999,2]
[374619642,1753381844819,-460.0,0.00020999,2]
[374619644,1753381844829,-1099.84,0.00020999,2]
[374619646,1753381844839,-330.60179746,0.00020999,2]
[374619648,1753381844848,-1050.8,0.00021,2]
[374619650,1753381844859,-460.0,0.00021,2]
[374619652,1753381844872,-213.96,0.00021,2]
[374619654,1753381844881,-235.69595733,0.00021,2]
[374619656,1753381844891,-460.0,0.00021,2]
[374619668,1753381845001,-460.0,0.00021,2]
[374619671,1753381845012,-460.0,0.00021,2]
[374619673,1753381845021,-460.0,0.00021,2]
[374619675,1753381845032,-741.14122082,0.00021,2]
[374619677,1753381845045,-1505.96,0.00021,2]
[374619679,1753381845055,-801.22,0.00021,2]
[374619681,1753381845064,-562.98,0.00021,2]
[374619683,1753381845074,-17547.71758048,0.00021,3]
[374619685,1753381845084,-1614.44,0.00021,2]
[374619687,1753381845094,-654.15,0.00021,2]
[374619689,1753381845104,-997.52,0.00021,2]
[374619691,1753381845113,-460.0,0.00021,2]
[374619693,1753381845123,-214.7213231,0.00021,3]
[374619695,1753381845132,-460.0,0.00021,2]
[374619697,1753381845142,-12624.810388,0.00021,3]
[374619700,1753381845152,-386.99281893,0.00021001,2]
[374619701,1753381845161,-460.0,0.00021003,2]
[374619704,1753381845172,-679.3,0.00021004,2]
[374619706,1753381845182,-3789.64613716,0.00021107,4]
[374619708,1753381845191,-319.34,0.0002126,3]
[374619710,1753381845200,-2643.77,0.00021271,2]
[374619712,1753381845210,-796.07,0.00021271,2]
[374619714,1753381845219,-1006.4,0.00021272,2]
[374619716,1753381845229,-1560.18,0.00021272,2]
[374619718,1753381845240,-460.0,0.00021272,2]
[374619720,1753381845250,-847.74,0.00021273,2]
[374619722,1753381845259,-896.72,0.00021273,2]
[374619724,1753381845270,-732.51,0.00021273,2]
[374619726,1753381845279,-460.0,0.00021273,2]
[374619728,1753381845289,-460.0,0.00021273,2]
[374619730,1753381845298,-460.0,0.00021273,2]
[374619732,1753381845307,-220.64,0.00021273,2]
[374619734,1753381845317,-460.0,0.00021273,2]
[374619736,1753381845327,-3010.21,0.00021273,2]
[374619738,1753381845337,-553.37,0.00021273,2]
[374619740,1753381845347,-735.37,0.00021273,2]
[374619742,1753381845357,-460.0,0.00021273,2]
[374619744,1753381845367,-460.0,0.00021273,2]
[374619746,1753381845377,-1099.84,0.00021273,2]
[374619748,1753381845388,-1050.8,0.00021274,2]
[374619750,1753381845398,-460.0,0.00021274,2]
[374619752,1753381845407,-460.0,0.00021274,2]
[374619754,1753381845416,-460.0,0.00021274,2]
[374619757,1753381845426,-460.0,0.00021274,2]
[374619759,1753381845435,-460.0,0.00021274,2]
[374619762,1753381845444,-1505.96,0.00021274,2]
[374619764,1753381845454,-801.22,0.00021274,2]
[374619766,1753381845464,-562.98,0.00021274,2]
[374619768,1753381845476,-1614.44,0.00021274,2]
[374619771,1753381845486,-654.15,0.00021274,2]
[374619773,1753381845495,-997.52,0.00021274,2]
[374619776,1753381845506,-460.0,0.00021274,2]
[374619778,1753381845516,-460.0,0.00021274,2]
[374619780,1753381845525,-460.0,0.00021277,2]
[374619782,1753381845535,-679.3,0.00021278,2]
[374619784,1753381845544,-817.214,0.00021347,2]
[374619786,1753381845554,-3789.64613716,0.00021348,5]
[374619787,1753381845563,-613.72738664,0.00021369,2]
[374619789,1753381845573,-500.0,0.00021369,2]
[374619791,1753381845582,-209.42685915,0.00021369,2]
[374619793,1753381845592,-265.31149077,0.00021369,2]
[374619795,1753381845602,-420.0,0.00021379,2]
[374619797,1753381845612,-725.31371795,0.00021408,2]
[374619800,1753381845622,-1000.0,0.00021408,2]
[374619802,1753381845632,-1000.0,0.00021408,2]
[374619803,1753381845642,-1000.0,0.00021408,2]
[374619806,1753381845652,-160.0,0.00021467,2]
[374619807,1753381845661,-955.0,0.00021482,2]
[374619810,1753381845671,-25000.0,0.00021518,2]
[374619812,1753381845681,-763.86837328,0.0002152,2]
[374619814,1753381845691,-2643.77,0.00021545,2]
[374619815,1753381845701,-796.07,0.00021545,2]
[374619818,1753381845711,-1006.4,0.00021546,2]
[374619820,1753381845721,-1560.18,0.00021546,2]
[374619822,1753381845731,-460.0,0.00021546,2]
[374619823,1753381845741,-847.74,0.00021547,2]
[374619825,1753381845751,-896.72,0.00021547,2]
[374619827,1753381845761,-732.51,0.00021547,2]
[374619829,1753381845770,-460.0,0.00021547,2]
[374619831,1753381845780,-460.0,0.00021547,2]
[374619833,1753381845789,-460.0,0.00021547,2]
[374619836,1753381845799,-460.0,0.00021547,2]
[374619838,1753381845810,-3010.21,0.00021547,2]
[374619839,1753381845820,-553.37,0.00021547,2]
[374619842,1753381845830,-735.37,0.00021547,2]
[374619844,1753381845840,-460.0,0.00021547,2]
[374619846,1753381845849,-460.0,0.00021547,2]
[374619848,1753381845860,-1099.84,0.00021547,2]
[374619850,1753381845872,-1050.8,0.00021548,2]
[374619851,1753381845882,-460.0,0.00021548,2]
[374619854,1753381845891,-460.0,0.00021548,2]
[374619856,1753381845903,-460.0,0.00021548,2]
[374619858,1753381845913,-460.0,0.00021548,2]
[374619860,1753381845922,-460.0,0.00021548,2]
[374619862,1753381845935,-1505.96,0.00021548,2]
[374619864,1753381845947,-801.22,0.00021548,2]
[374619866,1753381845958,-562.98,0.00021548,2]
[374619868,1753381845968,-1614.44,0.00021548,2]
[374619870,1753381845977,-654.15,0.00021548,2]
[374619871,1753381845986,-997.52,0.00021548,2]
[374619874,1753381845996,-460.0,0.00021548,2]
[374619876,1753381846006,-460.0,0.00021548,2]
[374619878,1753381846016,-263.88491599,0.00021551,2]
[374619880,1753381846026,-679.3,0.00021552,2]
[374619882,1753381846035,-3789.64613716,0.0002159,5]
[374619884,1753381846044,-877.72466876,0.00021739,2]
[374619886,1753381846054,-2643.77,0.00021819,2]
[374619888,1753381846065,-796.07,0.00021819,2]
[374619890,1753381846074,-1006.4,0.0002182,2]
[374619892,1753381846084,-1560.18,0.0002182,2]
[374619894,1753381846095,-460.0,0.0002182,2]
[374619896,1753381846104,-847.74,0.00021821,2]
[374619898,1753381846115,-896.72,0.00021821,2]
[374619900,1753381846124,-732.51,0.00021821,2]
[374619902,1753381846134,-460.0,0.00021821,2]
[374619904,1753381846144,-460.0,0.00021821,2]
[374619906,1753381846153,-460.0,0.00021821,2]
[374619908,1753381846163,-460.0,0.00021821,2]
[374619910,1753381846173,-3010.21,0.00021821,2]
[374619912,1753381846183,-553.37,0.00021821,2]
[374619914,1753381846192,-735.37,0.00021821,2]
[374619916,1753381846202,-460.0,0.00021821,2]
[374619918,1753381846212,-460.0,0.00021821,2]
[374619920,1753381846221,-1099.84,0.00021821,2]
[374619922,1753381846230,-1050.8,0.00021822,2]
[374619924,1753381846240,-460.0,0.00021822,2]
[374619927,1753381846250,-460.0,0.00021822,2]
[374619930,1753381846260,-460.0,0.00021822,2]
[374619933,1753381846269,-460.0,0.00021822,2]
[374619935,1753381846279,-460.0,0.00021822,2]
[374619937,1753381846289,-1505.96,0.00021822,2]
[374619939,1753381846299,-801.22,0.00021822,2]
[374619941,1753381846308,-562.98,0.00021822,2]
[374619943,1753381846319,-1614.44,0.00021822,2]
[374619945,1753381846328,-654.15,0.00021822,2]
[374619947,1753381846338,-997.52,0.00021822,2]
[374619949,1753381846348,-460.0,0.00021822,2]
[374619951,1753381846358,-460.0,0.00021822,2]
[374619953,1753381846368,-679.3,0.00021826,2]
[374619955,1753381846377,-3789.64613716,0.00021831,6]
[374619957,1753381846387,-151.0,0.000219,3]
[374619959,1753381846397,-1500.0,0.00021956,2]
[374619961,1753381846407,-500.0,0.00021956,2]
[374619963,1753381846416,-1692.7,0.00022,7]
[374619965,1753381846426,-166.67,0.00022,2]
[374619967,1753381846436,-260.0,0.00022015,2]
[374619969,1753381846446,-25000.0,0.00022066,2]
[374619971,1753381846455,-3789.64613716,0.00022072,6]
[374619973,1753381846467,-500.0,0.00022073,2]
[374619975,1753381846477,-160.11934557,0.00022073,2]
[374619977,1753381846487,-500.0,0.00022073,2]
[374619979,1753381846496,-500.35759823,0.00022073,2]
[374619981,1753381846506,-500.69980759,0.00022073,2]
[374619983,1753381846516,-500.0,0.00022073,2]
[374619985,1753381846526,-500.0,0.00022073,2]
[374619987,1753381846536,-500.0,0.00022073,2]
[374619989,1753381846545,-548.56607355,0.00022073,2]
[374619991,1753381846555,-500.0,0.00022073,2]
[374619993,1753381846564,-500.0,0.00022073,2]
[374619995,1753381846573,-2643.77,0.00022093,2]
[374619996,1753381846583,-796.07,0.00022093,2]
[374619999,1753381846594,-1006.4,0.00022094,2]
[374620001,1753381846603,-1560.18,0.00022094,2]
[374620003,1753381846613,-236.97,0.00022094,2]
[374620005,1753381846623,-847.74,0.00022095,2]
[374620006,1753381846632,-896.72,0.00022095,2]
[374620008,1753381846642,-732.51,0.00022095,2]
[374620010,1753381846651,-460.0,0.00022095,2]
[374620012,1753381846661,-460.0,0.00022095,2]
[374620014,1753381846671,-460.0,0.00022095,2]
[374620016,1753381846680,-460.0,0.00022095,2]
[374620019,1753381846690,-3010.21,0.00022095,2]
[374620020,1753381846700,-553.37,0.00022095,2]
[374620023,1753381846709,-735.37,0.00022095,2]
[374620025,1753381846719,-460.0,0.00022095,2]
[374620026,1753381846729,-460.0,0.00022095,2]
[374620029,1753381846739,-1099.84,0.00022095,2]
[374620030,1753381846748,-1050.8,0.00022096,2]
[374620032,1753381846758,-460.0,0.00022096,2]
[374620034,1753381846767,-460.0,0.00022096,2]
[374620037,1753381846777,-460.0,0.00022096,2]
[374620039,1753381846787,-460.0,0.00022096,2]
[374620041,1753381846796,-460.0,0.00022096,2]
[374620043,1753381846806,-801.22,0.00022096,2]
[374620045,1753381846816,-1505.96,0.00022096,2]
[374620047,1753381846825,-562.98,0.00022096,2]
[374620049,1753381846834,-654.15,0.00022096,2]
[374620051,1753381846844,-1614.44,0.00022096,2]
[374620053,1753381846853,-997.52,0.00022096,2]
[374620054,1753381846864,-460.0,0.00022096,2]
[374620057,1753381846877,-135.71816292,0.00022096,2]
[374620317,1753382001114,594.287791,0.00018875,2]
[374620319,1753382145782,166.06389,0.00013699,2]
[374620320,1753382236274,5654.4331691,0.00018786,2]
[374620336,1753382502739,554.0,0.00026,120]
[374620346,1753382517587,554.0,0.00026,120]
[374620347,1753382527939,554.0,0.00026,120]
[374620348,1753382537964,554.0,0.00026,120]
[374620349,1753382545857,554.0,0.00026,120]
[374620350,1753382556037,554.0,0.00026,120]
[374620351,1753382564885,554.0,0.00026,120]
[374620352,1753382571548,202.44825958,0.00019526,2]
[374620353,1753382575390,554.0,0.00026,120]
[374620354,1753382587950,554.0,0.00026,120]
[374620356,1753382599603,554.0,0.00026,120]
[374620357,1753382630727,554.0,0.00026,120]
[374620358,1753382636412,554.0,0.00026,120]
[374620359,1753382643932,568.73750525,0.00026,120]
[374620360,1753382651516,554.0,0.00026,120]
[374620364,1753382695708,11522.3602197,0.00018627,2]
[374620365,1753382695739,13377.6397803,0.00018627,2]
[374620366,1753382827138,-823.24535875,0.00019426,2]
[374620367,1753382840121,-376.75464125,0.00019426,2]
[374620368,1753382840143,-300.0,0.00019426,2]
[374620369,1753382840164,-46.21297113,0.00019427,2]
[374620370,1753382852090,-3213.94478193,0.00019427,2]
[374620372,1753382897335,5000.0,0.00019,2]
[374620373,1753382912789,5000.0,0.00019,2]
[374620374,1753382927797,5000.0,0.00019,2]
[374620375,1753382943095,1622.3602197,0.00019,2]
[374620376,1753382943119,3377.6397803,0.00019,2]
[374620377,1753382947232,210.811865,0.00018775,2]
[374620378,1753382959173,5000.0,0.00019,2]
[374620379,1753382975329,5000.0,0.00019,2]
[374620380,1753382990923,1739.84224694,0.00019,2]
[374620382,1753383027279,4008.6195456,0.00018626,2]
[374620383,1753383032382,-427.97487,0.00019034,2]
[374620384,1753383032392,-264.61757071,0.00019034,2]
[374620385,1753383032401,-189.93047499,0.00019034,2]
[374620386,1753383032411,-199.24819524,0.00019621,2]
[374620752,1753383038090,-500.0,0.00019621,2]
[374620753,1753383038100,-500.0,0.00019621,2]
[374620754,1753383038110,-500.0,0.00019621,2]
[374620756,1753383038119,-500.0,0.00019621,2]
[374620758,1753383038129,-500.0,0.00019621,2]
[374620759,1753383038138,-500.0,0.00019621,2]
[374620760,1753383038148,-500.0,0.00019621,2]
[374620761,1753383038157,-500.0,0.00019621,2]
[374620762,1753383038167,-170.69817088,0.00019621,2]
[374620763,1753383038176,-500.0,0.00019621,2]
[374620764,1753383038194,-500.0,0.00019621,2]
[374620765,1753383038206,-500.0,0.00019621,2]
[374620766,1753383038216,-500.0,0.00019621,2]
[374620767,1753383038226,-500.0,0.00019621,2]
[374620768,1753383038236,-500.0,0.00019621,2]
[374620769,1753383038246,-500.0,0.00019621,2]
[374620770,1753383038256,-500.0,0.00019621,2]
[374620771,1753383038268,-500.0,0.00019621,2]
[374620772,1753383038277,-500.0,0.00019621,2]
[374620773,1753383038290,-500.0,0.00019621,2]
[374620774,1753383038300,-196.90445175,0.00019621,2]
[374620775,1753383038314,-30.38094081,0.00019621,2]
[374620776,1753383038324,-500.0,0.00019621,2]
[374620777,1753383038335,-500.0,0.00019621,2]
[374620778,1753383038345,-404.38894832,0.00019621,2]
[374620779,1753383038354,-500.0,0.00019621,2]
[374620780,1753383038364,-500.0,0.00019621,2]
[374620781,1753383038376,-500.0,0.00019621,2]
[374620782,1753383038387,-500.0,0.00019621,2]
[374620783,1753383038398,-500.0,0.00019621,2]
[374620784,1753383038409,-500.0,0.00019621,2]
[374620785,1753383038420,-500.0,0.00019621,2]
[374620786,1753383038430,-500.0,0.00019621,2]
[374620787,1753383038442,-500.0,0.00019621,2]
[374620788,1753383038452,-500.03219169,0.00019621,2]
[374620789,1753383038464,-500.0,0.00019621,2]
[374620790,1753383038476,-500.0,0.00019621,2]
[374620791,1753383038486,-500.0,0.00019621,2]
[374620792,1753383038498,-500.0,0.00019621,2]
[374620793,1753383038509,-500.0,0.00019621,2]
[374620794,1753383038521,-500.0,0.00019621,2]
[374620795,1753383038532,-500.0,0.00019621,2]
[374620796,1753383038543,-363.2836694,0.00019621,2]
[374620797,1753383038555,-500.0,0.00019621,2]
[374620798,1753383038564,-299.54623704,0.00019621,2]
[374620799,1753383038575,-500.0,0.00019621,2]
[374620800,1753383038585,-500.0,0.00019621,2]
[374620801,1753383038594,-500.0,0.00019621,2]
[374620802,1753383038604,-500.0,0.00019621,2]
[374620803,1753383038614,-500.0,0.00019621,2]
[374620804,1753383038624,-500.0,0.00019621,2]
[374620805,1753383038634,-500.0,0.00019621,2]
[374620806,1753383038645,-500.0,0.00019621,2]
[374620807,1753383038655,-500.0,0.00019621,2]
[374620808,1753383038666,-500.0,0.00019621,2]
[374620809,1753383038676,-500.0,0.00019621,2]
[374620810,1753383038686,-500.0,0.00019621,2]
[374620811,1753383038695,-500.0,0.00019621,2]
[374620812,1753383038705,-500.0,0.00019621,2]
[374620813,1753383038714,-500.0,0.00019621,2]
[374620814,1753383038724,-500.0,0.00019621,2]
[374620815,1753383038734,-500.0,0.00019621,2]
[374620816,1753383038744,-500.0,0.00019621,2]
[374620817,1753383038755,-500.0,0.00019621,2]
[374620818,1753383038764,-157.93916392,0.00019621,2]
[374620819,1753383038774,-500.0,0.00019621,2]
[374620820,1753383038784,-500.0,0.00019621,2]
[374620821,1753383038794,-500.0,0.00019621,2]
[374620822,1753383038803,-500.0,0.00019621,2]
[374620823,1753383038814,-500.0,0.00019621,2]
[374620824,1753383038823,-500.0,0.00019621,2]
[374620825,1753383038833,-462.56603977,0.00019621,2]
[374620826,1753383038842,-500.0,0.00019621,2]
[374620827,1753383038851,-500.0,0.00019621,2]
[374620828,1753383038861,-500.0,0.00019621,2]
[374620829,1753383038870,-500.0,0.00019621,2]
[374620830,1753383038880,-100.75180476,0.00019621,2]
[374620831,1753383038890,-300.0,0.00019621,2]
[374620832,1753383038899,-1200.0,0.00019621,2]
[374620833,1753383038908,-50000.0,0.00019622,2]
[374620834,1753383038918,-160.0,0.00019626,2]
[374620835,1753383038928,-460.0,0.00019627,2]
[374620836,1753383038937,-460.0,0.00019627,2]
[374620837,1753383038947,-460.0,0.00019627,2]
[374620838,1753383038956,-460.0,0.00019627,2]
[374620839,1753383038965,-460.0,0.00019627,2]
[374620840,1753383038975,-460.0,0.00019627,2]
[374620841,1753383038984,-460.0,0.00019627,2]
[374620842,1753383038994,-460.0,0.00019627,2]
[374620843,1753383039003,-460.0,0.00019627,2]
[374620844,1753383039013,-460.0,0.00019627,2]
[374620845,1753383039023,-460.0,0.00019627,2]
[374620846,1753383039033,-460.0,0.00019627,2]
[374620847,1753383039042,-529.29181627,0.00019627,2]
[374620848,1753383039052,-460.0,0.00019627,2]
[374620849,1753383039061,-460.0,0.00019627,2]
[374620850,1753383039071,-460.0,0.00019627,2]
[374620851,1753383039081,-237.41573751,0.00019627,2]
[374620852,1753383039094,-460.0,0.00019627,2]
[374620853,1753383039104,-460.0,0.00019627,2]
[374620854,1753383039114,-460.0,0.00019627,2]
[374620855,1753383039125,-460.0,0.00019627,2]
[374620856,1753383039135,-460.0,0.00019627,2]
[374620857,1753383039147,-460.0,0.00019627,2]
[374620858,1753383039158,-460.0,0.00019627,2]
[374620859,1753383039167,-460.0,0.00019627,2]
[374620860,1753383039178,-426.626782,0.00019627,2]
[374620861,1753383039188,-464.52954203,0.00019627,2]
[374620862,1753383039199,-460.0,0.00019627,2]
[374620863,1753383039210,-460.0,0.00019627,2]
[374620864,1753383039220,-460.0,0.00019627,2]
[374620865,1753383039231,-460.0,0.00019627,2]
[374620866,1753383039240,-482.09245914,0.00019627,2]
[374620867,1753383039251,-1317.79,0.00019627,2]
[374620868,1753383039261,-460.0,0.00019627,2]
[374620869,1753383039274,-460.0,0.00019627,2]
[374620870,1753383039289,-460.0,0.00019627,2]
[374620871,1753383039303,-569.52,0.00019627,2]
[374620872,1753383039314,-460.0,0.00019627,2]
[374620873,1753383039327,-500.0,0.00019627,2]
[374620874,1753383039339,-460.0,0.00019627,2]
[374620875,1753383039351,-460.0,0.00019627,2]
[374620876,1753383039363,-460.0,0.00019627,2]
[374620877,1753383039377,-521.88,0.00019627,2]
[374620878,1753383039387,-460.0,0.00019627,2]
[374620879,1753383039397,-460.0,0.00019627,2]
[374620880,1753383039407,-460.0,0.00019627,2]
[374620881,1753383039417,-460.0,0.00019627,2]
[374620882,1753383039426,-460.0,0.00019627,2]
[374620883,1753383039436,-460.0,0.00019627,2]
[374620884,1753383039446,-460.0,0.00019627,2]
[374620885,1753383039456,-460.0,0.00019627,2]
[374620886,1753383039467,-460.0,0.00019627,2]
[374620887,1753383039477,-460.0,0.00019627,2]
[374620888,1753383039487,-460.0,0.00019627,2]
[374620889,1753383039496,-460.0,0.00019627,2]
[374620890,1753383039506,-460.0,0.00019627,2]
[374620891,1753383039516,-460.0,0.00019627,2]
[374620892,1753383039525,-460.0,0.00019627,2]
[374620893,1753383039536,-460.0,0.00019627,2]
[374620894,1753383039547,-460.0,0.00019627,2]
[374620895,1753383039558,-460.0,0.00019627,2]
[374620896,1753383039568,-460.0,0.00019627,2]
[374620897,1753383039580,-460.0,0.00019627,2]
[374620898,1753383039589,-460.0,0.00019627,2]
[374620899,1753383039599,-460.0,0.00019627,2]
[374620900,1753383039608,-460.0,0.00019627,2]
[374620901,1753383039617,-460.0,0.00019627,2]
[374620902,1753383039627,-460.0,0.00019627,2]
[374620903,1753383039638,-460.0,0.00019627,2]
[374620904,1753383039649,-460.0,0.00019627,2]
[374620905,1753383039659,-460.0,0.00019627,2]
[374620906,1753383039671,-460.0,0.00019627,2]
[374620907,1753383039680,-460.0,0.00019627,2]
[374620908,1753383039690,-460.0,0.00019627,2]